fUSD/lending_fUSD_20250108
["ID","MTS","AMOUNT","RATE_DAILY","PERIOD"]
[348083285,1736298641437,-500.0,0.00010367,2]
[348083286,1736298641447,-270.59169459,0.00010367,2]
[348083287,1736298641457,-500.0,0.00010367,2]
[348083288,1736298641467,-500.0,0.00010367,2]
[348083289,1736298641477,-500.0,0.00010367,2]
[348083290,1736298641487,-500.0,0.00010367,2]
[348083291,1736298641497,-500.0,0.00010367,2]
[348083292,1736298641507,-500.0,0.00010367,2]
[348083293,1736298641519,-500.0,0.00010367,2]
[348083294,1736298641528,-500.0,0.00010367,2]
[348083295,1736298641538,-500.0,0.00010367,2]
[348083296,1736298641547,-184.67449962,0.00010367,2]
[348083297,1736298641556,-500.0,0.00010367,2]
[348083298,1736298641566,-500.0,0.00010367,2]
[348083299,1736298641575,-500.0,0.00010367,2]
[348083300,1736298641584,-500.0,0.00010367,2]
[348083301,1736298641594,-500.0,0.00010367,2]
[348083302,1736298641604,-500.0,0.00010367,2]
[348083303,1736298641613,-500.0,0.00010367,2]
[348083304,1736298641624,-500.0,0.00010367,2]
[348083305,1736298641634,-500.0,0.00010367,2]
[348083306,1736298641643,-500.0,0.00010367,2]
[348083307,1736298641652,-500.0,0.00010367,2]
[348083308,1736298641662,-500.0,0.00010367,2]
[348083309,1736298641673,-500.0,0.00010367,2]
[348083310,1736298641684,-500.0,0.00010367,2]
[348083311,1736298641693,-500.0,0.00010367,2]
[348083312,1736298641845,-500.0,0.00010367,2]
[348083313,1736298641862,-500.0,0.00010367,2]
[348083314,1736298641871,-500.0,0.00010367,2]
[348083315,1736298641881,-500.0,0.00010367,2]
[348083316,1736298641891,-500.0,0.00010367,2]
[348083317,1736298641901,-500.0,0.00010367,2]
[348083318,1736298641911,-500.0,0.00010367,2]
[348083319,1736298641921,-500.0,0.00010367,2]
[348083320,1736298641930,-500.0,0.00010367,2]
[348083321,1736298641940,-500.0,0.00010367,2]
[348083322,1736298641949,-500.0,0.00010367,2]
[348083323,1736298641959,-2340.68,0.00010367,2]
[348083324,1736298641969,-500.0,0.00010367,2]
[348083325,1736298641978,-459.74,0.00010367,2]
[348083326,1736298641988,-500.0,0.00010367,2]
[348083327,1736298641997,-500.0,0.00010367,2]
[348083328,1736298642007,-500.0,0.00010367,2]
[348083329,1736298642017,-500.0,0.00010367,2]
[348083330,1736298642026,-500.0,0.00010367,2]
[348083331,1736298642036,-500.0,0.00010367,2]
[348083332,1736298642045,-500.0,0.00010367,2]
[348083333,1736298642055,-500.0,0.00010367,2]
[348083334,1736298642064,-500.0,0.00010367,2]
[348083335,1736298642074,-445.72,0.00010367,2]
[348083336,1736298642086,-500.0,0.00010367,2]
[348083337,1736298642099,-500.0,0.00010367,2]
[348083338,1736298642108,-400.95679895,0.00010367,2]
[348083339,1736298642118,-500.0,0.00010367,2]
[348083340,1736298642127,-500.0,0.00010367,2]
[348083341,1736298642137,-500.0,0.00010367,2]
[348083342,1736298642147,-267.29699784,0.00010367,2]
[348083343,1736298642156,-500.0,0.00010367,2]
[348083344,1736298642167,-540.98,0.00010367,2]
[348083346,1736298642176,-1381.17,0.00010367,2]
[348083348,1736298642186,-1650.8,0.00010367,2]
[348083350,1736298642195,-500.0,0.00010367,2]
[348083352,1736298642205,-500.0,0.00010367,2]
[348083354,1736298642214,-500.0,0.00010367,2]
[348083356,1736298642224,-500.0,0.00010367,2]
[348083358,1736298642234,-500.0,0.00010367,2]
[348083360,1736298642243,-500.0,0.00010367,2]
[348083362,1736298642252,-500.0,0.00010367,2]
[348083364,1736298642263,-500.0,0.00010367,2]
[348083366,1736298642279,-414.12,0.00010367,2]
[348083368,1736298642288,-500.0,0.00010367,2]
[348083369,1736298642297,-500.0,0.00010367,2]
[348083371,1736298642307,-500.0,0.00010367,2]
[348083373,1736298642316,-514.49,0.00010367,2]
[348083376,1736298642326,-500.0,0.00010367,2]
[348083377,1736298642336,-500.0,0.00010367,2]
[348083380,1736298642345,-500.0,0.00010367,2]
[348083381,1736298642355,-500.0,0.00010367,2]
[348083383,1736298642365,-500.0,0.00010367,2]
[348083385,1736298642375,-500.0,0.00010367,2]
[348083387,1736298642385,-500.0,0.00010367,2]
[348083389,1736298642395,-500.0,0.00010367,2]
[348083391,1736298642404,-500.0,0.00010367,2]
[348083393,1736298642414,-500.0,0.00010367,2]
[348083395,1736298642423,-500.0,0.00010367,2]
[348083397,1736298642434,-500.0,0.00010367,2]
[348083399,1736298642444,-546.06,0.00010367,2]
[348083401,1736298642453,-500.0,0.00010367,2]
[348083403,1736298642462,-226.01,0.00010367,2]
[348083405,1736298642471,-500.0,0.00010367,2]
[348083407,1736298642481,-500.0,0.00010367,2]
[348083409,1736298642491,-303.3,0.00010367,2]
[348083411,1736298642501,-445.86,0.00010367,2]
[348083413,1736298642511,-500.0,0.00010367,2]
[348083415,1736298642527,-500.0,0.00010367,2]
[348083418,1736298642536,-500.0,0.00010367,2]
[348083420,1736298642546,-500.0,0.00010367,2]
[348083422,1736298642555,-500.0,0.00010367,2]
[348083424,1736298642565,-500.0,0.00010367,2]
[348083426,1736298642574,-500.0,0.00010367,2]
[348083428,1736298642587,-500.0,0.00010367,2]
[348083430,1736298642596,-500.0,0.00010367,2]
[348083432,1736298642606,-500.0,0.00010367,2]
[348083434,1736298642615,-500.0,0.00010367,2]
[348083436,1736298642624,-500.0,0.00010367,2]
[348083438,1736298642634,-500.0,0.00010367,2]
[348083440,1736298642645,-525.6,0.00010367,2]
[348083442,1736298642654,-500.0,0.00010367,2]
[348083444,1736298642663,-500.0,0.00010367,2]
[348083446,1736298642673,-222.79,0.00010367,2]
[348083448,1736298642682,-500.0,0.00010368,2]
[348083450,1736298642692,-500.0,0.00010368,2]
[348083452,1736298642702,-500.0,0.00010368,2]
[348083454,1736298642714,-500.0,0.00010368,2]
[348083456,1736298642723,-500.0,0.00010368,2]
[348083458,1736298642732,-500.0,0.00010368,2]
[348083460,1736298642742,-500.0,0.00010368,2]
[348083462,1736298642752,-500.0,0.00010368,2]
[348083465,1736298642762,-500.0,0.00010368,2]
[348083467,1736298642774,-500.0,0.00010368,2]
[348083469,1736298642783,-500.0,0.00010368,2]
[348083470,1736298642793,-343.18314189,0.00010368,2]
[348083473,1736298642804,-500.0,0.00010368,2]
[348083475,1736298642813,-500.0,0.00010368,2]
[348083476,1736298642822,-500.0,0.00010368,2]
[348083478,1736298642832,-500.0,0.00010368,2]
[348083481,1736298642842,-500.0,0.00010368,2]
[348083482,1736298642852,-500.0,0.00010368,2]
[348083484,1736298642861,-500.0,0.00010368,2]
[348083487,1736298642871,-500.0,0.00010368,2]
[348083489,1736298642881,-500.0,0.00010368,2]
[348083491,1736298642891,-568.11,0.00010368,2]
[348083493,1736298642901,-500.86,0.00010368,2]
[348083495,1736298642911,-607.62,0.00010368,2]
[348083497,1736298642921,-500.0,0.00010368,2]
[348083499,1736298642930,-500.0,0.00010368,2]
[348083501,1736298642941,-500.0,0.00010368,2]
[348083503,1736298642951,-500.0,0.00010368,2]
[348083505,1736298642960,-500.0,0.00010369,2]
[348083507,1736298642970,-500.0,0.00010369,2]
[348083509,1736298642980,-500.0,0.00010369,2]
[348083511,1736298642990,-500.0,0.00010369,2]
[348083513,1736298642999,-500.0,0.00010369,2]
[348083515,1736298643010,-163.1615154,0.00010369,2]
[348083517,1736298643023,-500.0,0.00010369,2]
[348083519,1736298643032,-500.0,0.00010369,2]
[348083521,1736298643041,-500.0,0.00010369,2]
[348083523,1736298643052,-500.0,0.00010369,2]
[348083525,1736298643061,-417.45,0.00010369,2]
[348083527,1736298643071,-500.0,0.00010369,2]
[348083529,1736298643081,-500.0,0.00010369,2]
[348083531,1736298643093,-500.0,0.00010369,2]
[348083533,1736298643103,-500.0,0.00010369,2]
[348083535,1736298643113,-500.0,0.00010369,2]
[348083537,1736298643122,-250.78062699,0.00010369,2]
[348083539,1736298643133,-500.0,0.00010369,2]
[348083541,1736298643143,-500.0,0.00010369,2]
[348083543,1736298643152,-500.0,0.00010369,2]
[348083545,1736298643161,-290.37,0.00010369,2]
[348083547,1736298643171,-500.0,0.00010369,2]
[348083549,1736298643181,-500.0,0.00010369,2]
[348083551,1736298643191,-500.0,0.00010369,2]
[348083553,1736298643200,-500.0,0.00010369,2]
[348083555,1736298643213,-500.0,0.00010369,2]
[348083558,1736298643222,-500.0,0.00010369,2]
[348083561,1736298643231,-500.0,0.00010369,2]
[348083564,1736298643240,-500.0,0.00010369,2]
[348083567,1736298643250,-500.0,0.00010369,2]
[348083570,1736298643260,-500.0,0.00010369,2]
[348083573,1736298643273,-500.0,0.00010369,2]
[348083576,1736298643282,-594.09,0.00010369,2]
[348083579,1736298643291,-588.03,0.00010369,2]
[348083582,1736298643302,-1029.47,0.00010369,2]
[348083583,1736298643313,-2479.86,0.00010369,2]
[348083586,1736298643323,-1036.31,0.0001037,2]
[348083587,1736298643333,-500.0,0.0001037,2]
[348083589,1736298643343,-611.36,0.0001037,2]
[348083592,1736298643352,-500.0,0.0001037,2]
[348083596,1736298643362,-820.53,0.0001037,2]
[348083598,1736298643371,-509.33,0.0001037,2]
[348083600,1736298643381,-500.0,0.0001037,2]
[348083601,1736298643390,-1249.96,0.0001037,2]
[348083603,1736298643400,-1002.02,0.0001037,2]
[348083604,1736298643410,-3799.63910069,0.00010378,2]
[348083605,1736298643419,-205.40098195,0.00010422,2]
[348083606,1736298643429,-1488.91,0.00010437,2]
[348083607,1736298643439,-255.0,0.00010464,2]
[348083608,1736298643449,-3799.63910069,0.00010487,2]
[348083609,1736298643458,-634.0,0.0001049,2]
[348083610,1736298643468,-1860.0,0.0001049,2]
[348083612,1736298643478,-819.0,0.0001049,2]
[348083614,1736298643487,-1258.0,0.0001049,2]
[348083616,1736298643496,-916.0,0.0001049,2]
[348083618,1736298643506,-3776.0,0.0001049,2]
[348083620,1736298643517,-3976.0,0.0001049,2]
[348083622,1736298643528,-537.0,0.0001049,2]
[348083624,1736298643539,-500.0,0.00010519,2]
[348083626,1736298643549,-500.0,0.00010519,2]
[348083628,1736298643558,-500.0,0.00010519,2]
[348083630,1736298643568,-567.97,0.00010519,2]
[348083632,1736298643577,-500.0,0.00010519,2]
[348083634,1736298643587,-578.65,0.00010519,2]
[348083636,1736298643596,-500.0,0.00010519,2]
[348083638,1736298643606,-2959.13,0.00010519,2]
[348083640,1736298643615,-500.0,0.00010519,2]
[348083642,1736298643625,-678.03,0.00010519,2]
[348083644,1736298643635,-500.0,0.00010519,2]
[348083646,1736298643644,-527.55,0.00010519,2]
[348083648,1736298643654,-877.57,0.00010519,2]
[348083650,1736298643663,-849.24,0.00010519,2]
[348083652,1736298643672,-1597.27,0.00010519,2]
[348083654,1736298643682,-671.28,0.00010519,2]
[348083656,1736298643692,-666.8,0.00010519,2]
[348083658,1736298643701,-500.0,0.00010519,2]
[348083660,1736298643711,-988.95,0.00010519,2]
[348083662,1736298643721,-548.96,0.00010519,2]
[348083664,1736298643730,-310.651597,0.00010519,2]
[348083666,1736298643740,-650.26,0.00010519,2]
[348083668,1736298643749,-782.34,0.00010519,2]
[348083670,1736298643759,-690.13,0.00010519,2]
[348083672,1736298643768,-318.316185,0.00010519,2]
[348083674,1736298643778,-500.0,0.00010519,2]
[348083676,1736298643787,-623.13,0.00010519,2]
[348083678,1736298643797,-500.0,0.00010519,2]
[348083680,1736298643807,-1383.5,0.0001052,2]
[348083682,1736298643816,-1325.86,0.0001052,2]
[348083684,1736298643826,-500.0,0.0001052,2]
[348083686,1736298643836,-500.0,0.0001052,2]
[348083688,1736298643845,-598.75,0.0001052,2]
[348083690,1736298643855,-642.77,0.0001052,2]
[348083692,1736298643864,-1169.72,0.0001052,2]
[348083694,1736298643874,-557.55,0.0001052,2]
[348083696,1736298643884,-1606.05,0.0001052,2]
[348083698,1736298643893,-708.74,0.0001052,2]
[348083700,1736298643902,-1043.08,0.0001052,2]
[348083702,1736298643912,-599.09,0.0001052,2]
[348083704,1736298643922,-621.53,0.0001052,2]
[348083706,1736298643931,-500.0,0.0001052,2]
[348083708,1736298643940,-1014.71,0.0001052,2]
[348083710,1736298643949,-536.42,0.0001052,2]
[348083712,1736298643959,-205.40098195,0.00010552,2]
[348083714,1736298643968,-3894.0,0.00010557,2]
[348083716,1736298643978,-1173.0,0.00010557,2]
[348083718,1736298643987,-150.0,0.00010557,2]
[348083720,1736298643997,-155.80627653,0.00010567,2]
[348083722,1736298644006,-3799.63910069,0.00010596,2]
[348083724,1736298644015,-801.39,0.0001064,2]
[348083726,1736298644025,-1356.0,0.0001064,2]
[348083728,1736298644035,-924.07,0.0001064,2]
[348083730,1736298644044,-500.0,0.0001064,2]
[348083732,1736298644054,-1080.51,0.0001064,2]
[348083734,1736298644063,-500.0,0.0001064,2]
[348083736,1736298644072,-710.69,0.0001064,2]
[348083738,1736298644084,-500.0,0.0001064,2]
[348083740,1736298644093,-500.0,0.0001064,2]
[348083742,1736298644103,-553.37,0.0001064,2]
[348083744,1736298644112,-1339.71,0.0001064,2]
[348083746,1736298644122,-500.0,0.00010641,2]
[348083748,1736298644132,-500.0,0.00010641,2]
[348083750,1736298644142,-500.0,0.00010641,2]
[348083752,1736298644151,-500.0,0.00010641,2]
[348083754,1736298644160,-500.0,0.00010641,2]
[348083756,1736298644170,-500.0,0.00010641,2]
[348083758,1736298644180,-500.0,0.00010641,2]
[348083760,1736298644191,-500.0,0.00010641,2]
[348083762,1736298644200,-500.0,0.00010641,2]
[348083764,1736298644209,-500.0,0.00010641,2]
[348083766,1736298644218,-500.0,0.00010641,2]
[348083768,1736298644228,-500.0,0.00010641,2]
[348083770,1736298644239,-500.0,0.00010641,2]
[348083772,1736298644248,-500.0,0.00010641,2]
[348083779,1736298644300,-500.0,0.00010641,2]
[348083781,1736298644309,-500.0,0.00010641,2]
[348083783,1736298644318,-500.0,0.00010641,2]
[348083785,1736298644328,-500.0,0.00010641,2]
[348083787,1736298644337,-500.0,0.00010641,2]
[348083789,1736298644346,-500.0,0.00010641,2]
[348083791,1736298644356,-198.16,0.00010641,2]
[348083793,1736298644365,-500.0,0.00010641,2]
[348083795,1736298644374,-500.0,0.00010641,2]
[348083797,1736298644383,-500.0,0.00010641,2]
[348083799,1736298644392,-512.54964546,0.00010641,2]
[348083801,1736298644401,-500.0,0.00010641,2]
[348083802,1736298644411,-500.0,0.00010641,2]
[348083805,1736298644420,-500.0,0.00010641,2]
[348083807,1736298644429,-500.0,0.00010641,2]
[348083808,1736298644438,-500.0,0.00010641,2]
[348083810,1736298644447,-500.0,0.00010641,2]
[348083812,1736298644457,-500.0,0.00010641,2]
[348083815,1736298644466,-500.0,0.00010641,2]
[348083816,1736298644475,-500.0,0.00010641,2]
[348083818,1736298644484,-500.0,0.00010641,2]
[348083820,1736298644493,-500.0,0.00010641,2]
[348083822,1736298644502,-500.0,0.00010641,2]
[348083824,1736298644512,-500.0,0.00010641,2]
[348083826,1736298644522,-500.0,0.00010641,2]
[348083828,1736298644531,-500.0,0.00010641,2]
[348083830,1736298644541,-500.0,0.00010641,2]
[348083832,1736298644550,-500.0,0.00010641,2]
[348083834,1736298644559,-500.0,0.00010641,2]
[348083837,1736298644568,-500.0,0.00010641,2]
[348083838,1736298644577,-500.0,0.00010641,2]
[348083840,1736298644586,-500.0,0.00010641,2]
[348083843,1736298644595,-500.0,0.00010641,2]
[348083845,1736298644605,-500.0,0.00010641,2]
[348083846,1736298644614,-500.0,0.00010641,2]
[348083849,1736298644623,-500.0,0.00010641,2]
[348083850,1736298644633,-500.0,0.00010641,2]
[348083852,1736298644642,-500.0,0.00010641,2]
[348083855,1736298644652,-500.0,0.00010641,2]
[348083857,1736298644661,-500.0,0.00010641,2]
[348083858,1736298644670,-500.0,0.00010641,2]
[348083861,1736298644679,-500.0,0.00010641,2]
[348083862,1736298644689,-255.34,0.00010641,2]
[348083864,1736298644698,-2340.68,0.00010641,2]
[348083866,1736298644707,-500.0,0.00010641,2]
[348083868,1736298644716,-500.0,0.00010641,2]
[348083870,1736298644725,-500.0,0.00010641,2]
[348083872,1736298644734,-500.0,0.00010641,2]
[348083874,1736298644744,-500.0,0.00010641,2]
[348083876,1736298644752,-500.0,0.00010641,2]
[348083878,1736298644762,-500.0,0.00010641,2]
[348083880,1736298644771,-500.0,0.00010641,2]
[348083882,1736298644780,-474.62,0.00010641,2]
[348083884,1736298644788,-421.20723099,0.00010641,2]
[348083918,1736298645089,-78.79276901,0.00010641,2]
[348083920,1736298645100,-500.0,0.00010641,2]
[348083922,1736298645109,-500.0,0.00010641,2]
[348083924,1736298645119,-62.67203209,0.00010641,2]
[348083928,1736298645146,-437.32796791,0.00010641,2]
[348083930,1736298645156,-500.0,0.00010641,2]
[348083931,1736298645167,-540.98,0.00010641,2]
[348083932,1736298645178,-1381.17,0.00010641,2]
[348083933,1736298645188,-1650.8,0.00010641,2]
[348083934,1736298645198,-500.0,0.00010641,2]
[348083935,1736298645209,-500.0,0.00010641,2]
[348083936,1736298645219,-500.0,0.00010641,2]
[348083937,1736298645230,-500.0,0.00010641,2]
[348083939,1736298645241,-500.0,0.00010641,2]
[348083941,1736298645251,-500.0,0.00010641,2]
[348083943,1736298645262,-500.0,0.00010641,2]
[348083945,1736298645272,-500.0,0.00010641,2]
[348083947,1736298645281,-500.0,0.00010641,2]
[348083949,1736298645291,-500.0,0.00010641,2]
[348083951,1736298645300,-640.0,0.00010641,2]
[348083953,1736298645309,-500.0,0.00010641,2]
[348083955,1736298645318,-500.0,0.00010641,2]
[348083957,1736298645328,-500.0,0.00010641,2]
[348083959,1736298645337,-500.0,0.00010641,2]
[348083961,1736298645347,-500.0,0.00010641,2]
[348083963,1736298645355,-500.0,0.00010641,2]
[348083965,1736298645364,-500.0,0.00010641,2]
[348083967,1736298645373,-500.0,0.00010641,2]
[348083969,1736298645383,-159.26295825,0.00010641,2]
[348083971,1736298645392,-500.0,0.00010641,2]
[348083973,1736298645401,-546.06,0.00010641,2]
[348083975,1736298645410,-500.0,0.00010641,2]
[348083977,1736298645419,-500.0,0.00010641,2]
[348083979,1736298645429,-500.0,0.00010641,2]
[348083981,1736298645438,-500.0,0.00010641,2]
[348083983,1736298645447,-500.0,0.00010641,2]
[348083985,1736298645456,-500.0,0.00010641,2]
[348083987,1736298645465,-500.0,0.00010641,2]
[348083989,1736298645474,-500.0,0.00010641,2]
[348083991,1736298645483,-500.0,0.00010641,2]
[348083993,1736298645492,-375.37,0.00010641,2]
[348083995,1736298645501,-525.6,0.00010641,2]
[348083997,1736298645509,-195.59472254,0.00010642,2]
[348083999,1736298645518,-500.0,0.00010642,2]
[348084001,1736298645527,-500.0,0.00010642,2]
[348084002,1736298645536,-500.0,0.00010642,2]
[348084004,1736298645546,-500.0,0.00010642,2]
[348084006,1736298645555,-500.0,0.00010642,2]
[348084008,1736298645564,-500.0,0.00010642,2]
[348084010,1736298645574,-500.0,0.00010642,2]
[348084012,1736298645583,-500.0,0.00010642,2]
[348084014,1736298645592,-500.0,0.00010642,2]
[348084017,1736298645602,-597.04269252,0.00010642,2]
[348084019,1736298645612,-500.0,0.00010642,2]
[348084021,1736298645622,-500.0,0.00010642,2]
[348084022,1736298645631,-500.0,0.00010642,2]
[348084024,1736298645641,-500.0,0.00010642,2]
[348084026,1736298645650,-500.0,0.00010642,2]
[348084029,1736298645660,-194.58,0.00010642,2]
[348084031,1736298645669,-500.0,0.00010642,2]
[348084033,1736298645679,-500.0,0.00010642,2]
[348084034,1736298645688,-500.0,0.00010642,2]
[348084036,1736298645697,-568.11,0.00010642,2]
[348084038,1736298645707,-500.86,0.00010642,2]
[348084041,1736298645716,-500.0,0.00010642,2]
[348084043,1736298645725,-500.0,0.00010642,2]
[348084044,1736298645734,-500.0,0.00010642,2]
[348084046,1736298645743,-500.0,0.00010642,2]
[348084048,1736298645752,-500.0,0.00010643,2]
[348084050,1736298645761,-500.0,0.00010643,2]
[348084052,1736298645771,-500.0,0.00010643,2]
[348084054,1736298645780,-500.0,0.00010643,2]
[348084056,1736298645789,-500.0,0.00010643,2]
[348084058,1736298645798,-500.0,0.00010643,2]
[348084059,1736298645808,-500.0,0.00010643,2]
[348084060,1736298645817,-500.0,0.00010643,2]
[348084061,1736298645827,-500.0,0.00010643,2]
[348084062,1736298645836,-500.0,0.00010643,2]
[348084063,1736298645845,-500.0,0.00010643,2]
[348084064,1736298645854,-500.0,0.00010643,2]
[348084065,1736298645863,-500.0,0.00010643,2]
[348084067,1736298645872,-594.09,0.00010643,2]
[348084069,1736298645882,-588.03,0.00010643,2]
[348084071,1736298645891,-1029.47,0.00010643,2]
[348084073,1736298645900,-2479.86,0.00010643,2]
[348084075,1736298645912,-1036.31,0.00010644,2]
[348084077,1736298645921,-500.0,0.00010644,2]
[348084079,1736298645931,-611.36,0.00010644,2]
[348084081,1736298645941,-500.0,0.00010644,2]
[348084082,1736298645951,-820.53,0.00010644,2]
[348084084,1736298645960,-509.33,0.00010644,2]
[348084086,1736298645970,-500.0,0.00010644,2]
[348084087,1736298645979,-1249.96,0.00010644,2]
[348084089,1736298645988,-1002.02,0.00010644,2]
[348084091,1736298645998,-169.76,0.00010668,2]
[348084092,1736298646007,-1267.0,0.00010668,2]
[348084094,1736298646016,-2014.0,0.00010668,2]
[348084096,1736298646026,-566.0,0.00010668,2]
[348084098,1736298646035,-150.0,0.00010668,2]
[348084099,1736298646045,-1000.0,0.00010673,2]
[348084101,1736298646054,-205.40098195,0.00010683,2]
[348084103,1736298646063,-1000.0,0.00010699,2]
[348084104,1736298646072,-3799.63910069,0.00010706,2]
[348084106,1736298646083,-500.0,0.00010793,2]
[348084108,1736298646095,-500.0,0.00010793,2]
[348084109,1736298646104,-500.0,0.00010793,2]
[348084111,1736298646114,-567.97,0.00010793,2]
[348084113,1736298646123,-500.0,0.00010793,2]
[348084115,1736298646134,-578.65,0.00010793,2]
[348084116,1736298646144,-500.0,0.00010793,2]
[348084118,1736298646154,-2959.13,0.00010793,2]
[348084120,1736298646164,-500.0,0.00010793,2]
[348084123,1736298646173,-678.03,0.00010793,2]
[348084125,1736298646183,-500.0,0.00010793,2]
[348084127,1736298646194,-527.55,0.00010793,2]
[348084128,1736298646203,-877.57,0.00010793,2]
[348084131,1736298646211,-849.24,0.00010793,2]
[348084133,1736298646220,-1597.27,0.00010793,2]
[348084134,1736298646230,-671.28,0.00010793,2]
[348084136,1736298646239,-500.0,0.00010793,2]
[348084138,1736298646249,-666.8,0.00010793,2]
[348084140,1736298646260,-988.95,0.00010793,2]
[348084141,1736298646270,-310.651597,0.00010793,2]
[348084143,1736298646280,-548.96,0.00010793,2]
[348084145,1736298646290,-650.26,0.00010793,2]
[348084147,1736298646299,-782.34,0.00010793,2]
[348084149,1736298646309,-690.13,0.00010793,2]
[348084150,1736298646318,-318.316185,0.00010793,2]
[348084152,1736298646327,-500.0,0.00010793,2]
[348084154,1736298646338,-623.13,0.00010793,2]
[348084156,1736298646348,-500.0,0.00010793,2]
[348084157,1736298646357,-151.0,0.00010794,2]
[348084159,1736298646367,-151.0,0.00010794,2]
[348084161,1736298646377,-1383.5,0.00010794,2]
[348084163,1736298646386,-1325.86,0.00010794,2]
[348084165,1736298646396,-500.0,0.00010794,2]
[348084167,1736298646405,-598.75,0.00010794,2]
[348084168,1736298646415,-642.77,0.00010794,2]
[348084170,1736298646425,-1169.72,0.00010794,2]
[348084172,1736298646435,-557.55,0.00010794,2]
[348084174,1736298646445,-1606.05,0.00010794,2]
[348084176,1736298646454,-708.74,0.00010794,2]
[348084178,1736298646463,-1043.08,0.00010794,2]
[348084179,1736298646472,-599.09,0.00010794,2]
[348084181,1736298646482,-621.53,0.00010794,2]
[348084183,1736298646492,-500.0,0.00010794,2]
[348084185,1736298646502,-1014.71,0.00010794,2]
[348084187,1736298646511,-536.42,0.00010794,2]
[348084189,1736298646520,-205.40098195,0.00010813,2]
[348084190,1736298646530,-3799.63910069,0.00010815,2]
[348084192,1736298646540,-421.84658663,0.000109,2]
[348084194,1736298646550,-421.84658663,0.000109,2]
[348084196,1736298646559,-421.84658663,0.000109,2]
[348084198,1736298646568,-801.39,0.00010914,2]
[348084200,1736298646578,-1356.0,0.00010914,2]
[348084202,1736298646588,-924.07,0.00010914,2]
[348084203,1736298646597,-500.0,0.00010914,2]
[348084205,1736298646607,-1080.51,0.00010914,2]
[348084207,1736298646616,-500.0,0.00010914,2]
[348084209,1736298646626,-710.69,0.00010914,2]
[348084210,1736298646635,-500.0,0.00010914,2]
[348084212,1736298646645,-500.0,0.00010914,2]
[348084214,1736298646656,-553.37,0.00010914,2]
[348084216,1736298646666,-1339.71,0.00010914,2]
[348084218,1736298646675,-500.0,0.00010915,2]
[348084220,1736298646685,-500.0,0.00010915,2]
[348084222,1736298646694,-500.0,0.00010915,2]
[348084224,1736298646704,-500.0,0.00010915,2]
[348084226,1736298646713,-500.0,0.00010915,2]
[348084228,1736298646723,-500.0,0.00010915,2]
[348084230,1736298646732,-500.0,0.00010915,2]
[348084232,1736298646742,-500.0,0.00010915,2]
[348084234,1736298646752,-500.0,0.00010915,2]
[348084236,1736298646761,-500.0,0.00010915,2]